[Event "FIDE World Senior-50 CC 2023"]
[Site "Terrasini"]
[Date "2023.11.05"]
[Round "11.12"]
[White "Minasian, Artashes"]
[Black "Plotkin, Victor"]
[Result "1-0"]
[ECO "A11"]
[WhiteElo "2462"]
[BlackElo "2229"]
[Annotator "RC"]
[PlyCount "87"]
[EventDate "2023.10.22"]
[EventType "swiss"]
[EventCountry "ITA"]
[SourceTitle "playchess.com"]
[Source "ChessBase"]
[SourceQuality "1"]
[TimeControl "40/5400+30:1800+30"]

1. g3 {[%emt 0:00:14]} d5 {[%emt 0:00:08]} 2. Nf3 {[%emt 0:00:06]} c6 {[%emt 0:02:02]} 3. b3 {[%emt 0:00:29]} Nf6 {[%emt 0:01:10]} 4. Bb2 {[%emt 0:00:15]} g6 {[%emt 0:08:54]} 5. Bg2 {[%emt 0:00:25]} Bg7 {[%emt 0:00:08]} 6. O-O {[%emt 0:00:12]} O-O {[%emt 0:00:23]} 7. d3 {[%emt 0:00:14]} Re8 {[%emt 0:03:10]} 8. Nbd2 {[%emt 0:00:21]} Nbd7 {[%emt 0:00:49]} 9. c4 {[%emt 0:00:54]} e5 {[%emt 0:01:14]} 10. cxd5 {[%emt 0:02:19]} Nxd5 {[%emt 0:03:29]} 11. Nc4 {[%emt 0:02:50]} Qc7 {[%emt 0:06:29]} 12. e4 {[%emt 0:04:44]} N5b6 {[%emt 0:01:53]} 13. Ne3 {[%emt 0:00:23]} a5 {[%emt 0:03:21]} 14. Rc1 {[%emt 0:05:56]} Nf8 {[%emt 0:04:10]} 15. Qc2 {[%emt 0:07:40]} Qe7 {[%emt 0:06:04]} 16. Rfe1 {[%emt 0:03:02]} a4 {[%emt 0:02:22]} 17. d4 {[%emt 0:03:57]} exd4 {[%emt 0:03:20]} 18. Bxd4 {[%emt 0:00:50]} Bxd4 {[%emt 0:02:46]} 19. Nxd4 {[%emt 0:00:04]} axb3 {[%emt 0:01:44]} 20. axb3 {[%emt 0:04:17]} Ne6 {[%emt 0:03:35]} 21. Qc3 {[%emt 0:06:00]} Nxd4 {[%emt 0:01:52]} 22. Qxd4 {[%emt 0:00:45]} Nd7 {[%emt 0:03:03]} 23. f4 {[%emt 0:02:21]} Nf6 {[%emt 0:01:54]} 24. e5 {[%emt 0:01:45]} Ng4 {[%emt 0:01:07]} 25. Nc4 {[%emt 0:00:25]} Nh6 {[%emt 0:04:57]} 26. Qd6 {[%emt 0:27:38]} Be6 {[%emt 0:03:11]} 27. Ra1 {[%emt 0:05:19]} Rad8 {[%emt 0:03:05]} 28. Qxe7 {[%emt 0:00:06]} Rxe7 {[%emt 0:00:05]} 29. Red1 {[%emt 0:05:05]} Red7 {[%emt 0:07:55]} 30. Rxd7 {[%emt 0:01:01]} Rxd7 {[%emt 0:00:02]} 31. Nd6 {[%emt 0:02:55]} Nf5 {[%emt 0:01:54]} 32. Ne4 {[%emt 0:04:28]} Rd4 {[%emt 0:03:42]} 33. g4 {[%emt 0:03:23]} Ne3 {[%emt 0:01:13]} 34. Ra8+ {[%emt 0:01:24]} Kg7 {[%emt 0:00:03]} 35. g5 {[%emt 0:00:28]} f5 {[%emt 0:05:31]} 36. gxf6+ {[%emt 0:00:18]} Kh6 {[%emt 0:00:29]} 37. Ng5 {[%emt 0:00:20]} Bxb3 {[%emt 0:02:22]} 38. f7 {[%emt 0:02:27]} Rxf4 {[%emt 0:00:22]} 39. f8=Q+ {[%emt 0:01:01]} Rxf8 {[%emt 0:00:06]} 40. Rxf8 {[%emt 0:00:03]} Kxg5 {[%emt 0:02:50]} 41. h4+ {[%emt 0:32:10]} Kh6 {[%emt 0:34:50]} 42. Bh3 {[%emt 0:00:00]} Nf5 {[%emt 0:00:00]} 43. Bxf5 {[%emt 0:00:00]} gxf5 {[%emt 0:00:00]} 44. e6 {[%emt 0:00:00]} 1-0

[Event "FIDE World Senior-50 CC 2023"]
[Site "Terrasini"]
[Date "2023.11.05"]
[Round "11.13"]
[White "Matamoros Franco, Carlos S."]
[Black "Boulard, Eric"]
[Result "1-0"]
[ECO "A34"]
[WhiteElo "2455"]
[BlackElo "2181"]
[Annotator "RC"]
[PlyCount "86"]
[EventDate "2023.10.22"]
[EventType "swiss"]
[EventCountry "ITA"]
[SourceTitle "playchess.com"]
[Source "ChessBase"]
[SourceQuality "1"]
[TimeControl "40/5400+30:1800+30"]

1. Nf3 {[%emt 0:00:03]} d5 {[%emt 0:00:15]} 2. g3 {[%emt 0:00:12]} c5 {[%emt 0:00:24]} 3. c4 {[%emt 0:00:52]} Nf6 {[%emt 0:00:28]} 4. cxd5 {[%emt 0:00:19]} Nxd5 {[%emt 0:00:13]} 5. Bg2 {[%emt 0:00:12]} e6 {[%emt 0:03:08]} 6. O-O {[%emt 0:01:29]} Be7 {[%emt 0:00:26]} 7. d4 {[%emt 0:00:51]} Nc6 {[%emt 0:02:57]} 8. Nc3 {[%emt 0:04:35]} cxd4 {[%emt 0:07:02]} 9. Nxd5 {[%emt 0:00:50]} exd5 {[%emt 0:00:40]} 10. Nxd4 {[%emt 0:00:14]} O-O {[%emt 0:00:37]} 11. Be3 {[%emt 0:05:01]} Bf6 {[%emt 0:16:32]} 12. Rc1 {[%emt 0:02:10]} Nxd4 {[%emt 0:03:50]} 13. Bxd4 {[%emt 0:00:05]} Be6 {[%emt 0:00:26]} 14. a3 {[%emt 0:02:43]} a5 {[%emt 0:09:28]} 15. Qd2 {[%emt 0:05:26]} Re8 {[%emt 0:10:26]} 16. e3 {[%emt 0:02:57]} Ra6 {[%emt 0:07:12]} 17. Rc5 {[%emt 0:04:54]} a4 {[%emt 0:07:01]} 18. Rfc1 {[%emt 0:14:12]} h6 {[%emt 0:05:37]} 19. h4 {[%emt 0:05:48]} Bxd4 {[%emt 0:06:24]} 20. Qxd4 {[%emt 0:01:56]} Ra5 {[%emt 0:00:16]} 21. Bf1 {[%emt 0:18:31]} Qa8 {[%emt 0:09:36]} 22. Rc7 {[%emt 0:02:40]} Rc8 {[%emt 0:00:32]} 23. Qb6 {[%emt 0:07:24]} Rxc7 {[%emt 0:02:17]} 24. Rxc7 {[%emt 0:00:14]} Ra7 {[%emt 0:02:57]} 25. Bb5 {[%emt 0:01:11]} Qd8 {[%emt 0:01:56]} 26. Rxb7 {[%emt 0:04:36]} Qxb6 {[%emt 0:00:05]} 27. Rxb6 {[%emt 0:00:03]} Kf8 {[%emt 0:00:24]} 28. Kf1 {[%emt 0:01:20]} Ke7 {[%emt 0:00:58]} 29. Ke1 {[%emt 0:01:08]} Kd8 {[%emt 0:00:37]} 30. Be2 {[%emt 0:00:34]} Bd7 {[%emt 0:00:41]} 31. Kd2 {[%emt 0:00:24]} Kc7 {[%emt 0:00:16]} 32. Rb4 {[%emt 0:00:09]} Kd6 {[%emt 0:00:25]} 33. Bd1 {[%emt 0:00:41]} Kc5 {[%emt 0:00:22]} 34. Kc3 {[%emt 0:00:20]} Bb5 {[%emt 0:00:47]} 35. Bc2 {[%emt 0:03:32]} f6 {[%emt 0:00:47]} 36. Bd3 {[%emt 0:01:46]} Bc6 {[%emt 0:00:17]} 37. Rb8 {[%emt 0:04:55]} Rd7 {[%emt 0:00:33]} 38. Rc8 {[%emt 0:01:17]} Rb7 {[%emt 0:00:48]} 39. Bc2 {[%emt 0:00:32]} Ra7 {[%emt 0:01:25]} 40. Rb8 {[%emt 0:03:36]} Rd7 {[%emt 0:00:15]} 41. Rb4 {[%emt 0:04:55]} Ra7 {[%emt 0:00:12]} 42. g4 {[%emt 0:00:07]} Ra8 {[%emt 0:00:41]} 43. e4 {[%emt 0:06:22]} dxe4 {[%emt 0:02:04]} 1-0

[Event "FIDE World Senior-50 CC 2023"]
[Site "Terrasini"]
[Date "2023.11.05"]
[Round "11.14"]
[White "Haessel, Dale R."]
[Black "Vlassov, Nikolai"]
[Result "0-1"]
[ECO "E20"]
[WhiteElo "2023"]
[BlackElo "2283"]
[Annotator "RC"]
[PlyCount "74"]
[EventDate "2023.10.22"]
[EventType "swiss"]
[EventCountry "ITA"]
[SourceTitle "playchess.com"]
[Source "ChessBase"]
[SourceQuality "1"]
[TimeControl "40/5400+30:1800+30"]

1. d4 {[%emt 0:00:01]} Nf6 {[%emt 0:00:07]} 2. c4 {[%emt 0:00:04]} e6 {[%emt 0:00:08]} 3. Nc3 {[%emt 0:00:05]} Bb4 {[%emt 0:00:08]} 4. f3 {[%emt 0:00:17]} d5 {[%emt 0:01:39]} 5. a3 {[%emt 0:00:05]} Be7 {[%emt 0:00:29]} 6. e4 {[%emt 0:01:09]} dxe4 {[%emt 0:00:10]} 7. fxe4 {[%emt 0:00:08]} c5 {[%emt 0:00:53]} 8. d5 {[%emt 0:05:11]} exd5 {[%emt 0:00:17]} 9. exd5 {[%emt 0:01:58]} O-O {[%emt 0:01:54]} 10. Nf3 {[%emt 0:03:35]} Bd6 {[%emt 0:03:17]} 11. Be2 {[%emt 0:00:30]} a6 {[%emt 0:01:21]} 12. O-O {[%emt 0:02:42]} Re8 {[%emt 0:02:04]} 13. Qc2 {[%emt 0:11:26]} h6 {[%emt 0:06:22]} 14. Bd2 {[%emt 0:01:36]} Bg4 {[%emt 0:05:39]} 15. Rae1 {[%emt 0:06:13]} Nbd7 {[%emt 0:02:10]} 16. h3 {[%emt 0:18:34]} Bh5 {[%emt 0:04:39]} 17. Bd3 {[%emt 0:10:22]} Bxf3 {[%emt 0:03:33]} 18. Rxe8+ {[%emt 0:00:19]} Nxe8 {[%emt 0:08:31]} 19. Rxf3 {[%emt 0:00:16]} Ne5 {[%emt 0:00:23]} 20. Rf1 {[%emt 0:01:45]} b5 {[%emt 0:04:09]} 21. b3 {[%emt 0:01:32]} bxc4 {[%emt 0:00:43]} 22. bxc4 {[%emt 0:00:29]} Nf6 {[%emt 0:04:21]} 23. Ne4 {[%emt 0:01:12]} Nxe4 {[%emt 0:00:41]} 24. Bxe4 {[%emt 0:00:04]} Qh4 {[%emt 0:01:17]} 25. Bf4 {[%emt 0:09:38]} Re8 {[%emt 0:01:37]} 26. Bh2 {[%emt 0:04:17]} Nxc4 {[%emt 0:07:22]} 27. Bh7+ {[%emt 0:07:08]} Kh8 {[%emt 0:01:13]} 28. Bxd6 {[%emt 0:00:17]} Qd4+ {[%emt 0:00:33]} 29. Kh1 {[%emt 0:02:31]} Nxd6 {[%emt 0:00:14]} 30. Rd1 {[%emt 0:00:22]} Qe5 {[%emt 0:04:10]} 31. Bd3 {[%emt 0:00:09]} c4 {[%emt 0:00:12]} 32. Bf1 {[%emt 0:00:02]} Nf5 {[%emt 0:00:53]} 33. Qa4 {[%emt 0:02:11]} c3 {[%emt 0:16:20]} 34. d6 {[%emt 0:04:06]} c2 {[%emt 0:02:01]} 35. d7 {[%emt 0:00:39]} Ng3+ {[%emt 0:02:52]} 36. Kg1 {[%emt 0:00:10]} Qc5+ {[%emt 0:00:49]} 37. Qd4 {[%emt 0:03:16]} Rd8 {[%emt 0:00:18]} 0-1

[Event "FIDE World Senior-50 CC 2023"]
[Site "Terrasini"]
[Date "2023.11.05"]
[Round "11.15"]
[White "Lima, Darcy"]
[Black "Chinchilla Miranda, Eugenio"]
[Result "1/2-1/2"]
[ECO "A13"]
[WhiteElo "2416"]
[BlackElo "2179"]
[Annotator "RC"]
[PlyCount "84"]
[EventDate "2023.10.22"]
[EventType "swiss"]
[EventCountry "ITA"]
[SourceTitle "playchess.com"]
[Source "ChessBase"]
[SourceQuality "1"]
[TimeControl "40/5400+30:1800+30"]

1. c4 {[%emt 0:00:02]} e6 {[%emt 0:00:15]} 2. g3 {[%emt 0:00:09]} d5 {[%emt 0:00:08]} 3. Nf3 {[%emt 0:00:03]} Nf6 {[%emt 0:02:37]} 4. Bg2 {[%emt 0:00:06]} d4 {[%emt 0:00:22]} 5. e3 {[%emt 0:00:47]} c5 {[%emt 0:00:29]} 6. O-O {[%emt 0:00:27]} Nc6 {[%emt 0:00:21]} 7. exd4 {[%emt 0:00:07]} cxd4 {[%emt 0:00:07]} 8. d3 {[%emt 0:00:11]} Bd6 {[%emt 0:00:18]} 9. Bg5 {[%emt 0:00:06]} h6 {[%emt 0:00:15]} 10. Bxf6 {[%emt 0:00:09]} Qxf6 {[%emt 0:00:07]} 11. Nbd2 {[%emt 0:00:09]} Qe7 {[%emt 0:02:05]} 12. Re1 {[%emt 0:00:36]} O-O {[%emt 0:00:57]} 13. a3 {[%emt 0:00:34]} a5 {[%emt 0:01:27]} 14. Nb3 {[%emt 0:00:10]} Qf6 {[%emt 0:00:50]} 15. c5 {[%emt 0:00:59]} Bc7 {[%emt 0:01:20]} 16. Nbd2 {[%emt 0:02:36]} a4 {[%emt 0:09:06]} 17. Rc1 {[%emt 0:01:52]} Bd7 {[%emt 0:09:12]} 18. Nc4 {[%emt 0:02:49]} Ra6 {[%emt 0:13:52]} 19. Nfd2 {[%emt 0:01:41]} Qe7 {[%emt 0:06:37]} 20. Ne4 {[%emt 0:07:49]} Na5 {[%emt 0:07:10]} 21. Nxa5 {[%emt 0:02:17]} Rxa5 {[%emt 0:00:52]} 22. Qd2 {[%emt 0:01:38]} Rb5 {[%emt 0:02:41]} 23. f4 {[%emt 0:03:11]} Ba5 {[%emt 0:03:17]} 24. Qf2 {[%emt 0:00:04]} Bxe1 {[%emt 0:00:12]} 25. Rxe1 {[%emt 0:00:03]} Bc6 {[%emt 0:01:01]} 26. f5 {[%emt 0:00:02]} Bxe4 {[%emt 0:05:42]} 27. Bxe4 {[%emt 0:01:14]} Qxc5 {[%emt 0:03:33]} 28. fxe6 {[%emt 0:01:42]} fxe6 {[%emt 0:00:28]} 29. Qe2 {[%emt 0:00:01]} Qg5 {[%emt 0:00:55]} 30. Qc2 {[%emt 0:04:02]} h5 {[%emt 0:04:03]} 31. Qc4 {[%emt 0:03:18]} Qf6 {[%emt 0:02:05]} 32. Qc2 {[%emt 0:00:31]} h4 {[%emt 0:00:32]} 33. Bg2 {[%emt 0:00:45]} hxg3 {[%emt 0:01:00]} 34. hxg3 {[%emt 0:00:02]} Qg5 {[%emt 0:05:38]} 35. Kh2 {[%emt 1:07:48]} Re5 {[%emt 0:04:38]} 36. Rxe5 {[%emt 0:00:00]} Qxe5 {[%emt 0:00:04]} 37. Qxa4 {[%emt 0:00:00]} b5 {[%emt 0:01:59]} 38. Qc2 {[%emt 0:00:00]} Qe3 {[%emt 0:00:52]} 39. Qc6 {[%emt 0:00:00]} Qh6+ {[%emt 0:09:45]} 40. Kg1 {[%emt 0:00:00]} Qe3+ {[%emt 0:00:34]} 41. Kh2 {[%emt 0:00:00]} Rf6 {[%emt 0:09:36]} 42. Qe8+ {[%emt 0:00:00]} Rf8 {[%emt 0:00:37]} 1/2-1/2

[Event "FIDE World Senior-50 CC 2023"]
[Site "Terrasini"]
[Date "2023.11.05"]
[Round "11.17"]
[White "Papadimitriou, Loukas"]
[Black "Jhunjhnuwala, Krishan"]
[Result "1-0"]
[ECO "A57"]
[WhiteElo "1987"]
[BlackElo "2268"]
[Annotator "RC"]
[PlyCount "81"]
[EventDate "2023.10.22"]
[EventType "swiss"]
[EventCountry "ITA"]
[SourceTitle "playchess.com"]
[Source "ChessBase"]
[SourceQuality "1"]
[TimeControl "40/5400+30:1800+30"]

1. d4 {[%emt 0:00:04]} Nf6 {[%emt 1:31:00]} 2. c4 {[%emt 0:00:08]} c5 {[%emt 0:00:00]} 3. d5 {[%emt 0:00:04]} b5 {[%emt 0:00:00]} 4. cxb5 {[%emt 0:02:40]} a6 {[%emt 0:00:00]} 5. f3 {[%emt 0:00:08]} d6 {[%emt 0:00:00]} 6. e4 {[%emt 0:00:29]} g6 {[%emt 0:00:00]} 7. a4 {[%emt 0:00:36]} Bg7 {[%emt 0:00:00]} 8. Na3 {[%emt 0:00:06]} O-O {[%emt 0:00:00]} 9. Ne2 {[%emt 0:00:07]} e6 {[%emt 0:00:00]} 10. Nc3 {[%emt 0:00:18]} exd5 {[%emt 0:00:00]} 11. Nxd5 {[%emt 0:00:22]} Nxe4 {[%emt 0:00:00]} 12. fxe4 {[%emt 0:00:05]} Qh4+ {[%emt 0:00:00]} 13. Kd2 {[%emt 0:00:21]} Qxe4 {[%emt 0:00:00]} 14. Qf3 {[%emt 0:00:38]} Qd4+ {[%emt 0:00:00]} 15. Bd3 {[%emt 0:03:04]} c4 {[%emt 0:00:00]} 16. Nxc4 {[%emt 0:01:22]} axb5 {[%emt 0:00:00]} 17. Ncb6 {[%emt 0:16:41]} Nc6 {[%emt 0:00:00]} 18. Ra3 {[%emt 0:24:47]} Re8 {[%emt 0:00:00]} 19. Qf4 {[%emt 0:11:18]} Qc5 {[%emt 0:00:00]} 20. Rc3 {[%emt 0:06:05]} Bxc3+ {[%emt 0:00:00]} 21. bxc3 {[%emt 0:00:10]} Be6 {[%emt 0:00:00]} 22. Nf6+ {[%emt 0:01:16]} Kg7 {[%emt 0:00:00]} 23. Nxa8 {[%emt 0:00:59]} Rxa8 {[%emt 0:00:00]} 24. Ne4 {[%emt 0:00:35]} Qd5 {[%emt 0:00:00]} 25. Ke2 {[%emt 0:08:52]} Ne5 {[%emt 0:00:00]} 26. Bxb5 {[%emt 0:01:36]} Bf5 {[%emt 0:00:00]} 27. Qh6+ {[%emt 0:00:33]} Kh8 {[%emt 0:00:00]} 28. Qxh7+ {[%emt 0:00:10]} Kxh7 {[%emt 0:00:00]} 29. Nf6+ {[%emt 0:00:05]} Kg7 {[%emt 0:00:00]} 30. Nxd5 {[%emt 0:00:05]} Be4 {[%emt 0:00:00]} 31. Ne3 {[%emt 0:01:00]} Rc8 {[%emt 0:00:00]} 32. Bb2 {[%emt 0:00:38]} f5 {[%emt 0:00:00]} 33. Rd1 {[%emt 0:01:57]} f4 {[%emt 0:00:00]} 34. Rxd6 {[%emt 0:00:44]} Kf7 {[%emt 0:00:00]} 35. Nd5 {[%emt 0:00:40]} g5 {[%emt 0:00:00]} 36. Kf2 {[%emt 0:03:45]} Rc5 {[%emt 0:00:00]} 37. Nf6 {[%emt 0:03:06]} Ba8 {[%emt 0:02:12]} 38. h3 {[%emt 0:02:02]} Ng6 {[%emt 0:01:44]} 39. c4 {[%emt 0:00:44]} Nh4 {[%emt 0:00:20]} 40. Nd5 {[%emt 0:00:31]} Rc8 {[%emt 0:01:09]} 41. Rf6+ {[%emt 0:31:09]} 1-0

[Event "FIDE World Senior-50 CC 2023"]
[Site "Terrasini"]
[Date "2023.11.05"]
[Round "11.18"]
[White "Melikhov, Evgeny V."]
[Black "Stets, Vasyl"]
[Result "1/2-1/2"]
[ECO "D36"]
[WhiteElo "2189"]
[BlackElo "2169"]
[Annotator "ChessBase"]
[PlyCount "79"]
[EventDate "2023.10.22"]
[EventType "swiss"]
[EventCountry "ITA"]
[SourceTitle "playchess.com"]
[Source "ChessBase"]
[SourceQuality "1"]
[TimeControl "40/5400+30:1800+30"]

1. d4 {[%emt 0:00:12]} Nf6 {[%emt 0:00:19]} 2. c4 {[%emt 0:00:21]} e6 {[%emt 0:00:13]} 3. Nc3 {[%emt 0:02:09]} d5 {[%emt 0:00:15]} 4. cxd5 {[%emt 0:00:22]} exd5 {[%emt 0:00:02]} 5. Bg5 {[%emt 0:00:26]} c6 {[%emt 0:00:30]} 6. Qc2 {[%emt 0:00:43]} Be7 {[%emt 0:02:58]} 7. e3 {[%emt 0:00:56]} h6 {[%emt 0:00:43]} 8. Bh4 {[%emt 0:01:42]} O-O {[%emt 0:00:38]} 9. Bd3 {[%emt 0:02:40]} Nbd7 {[%emt 0:09:41]} 10. Nf3 {[%emt 0:02:24]} Re8 {[%emt 0:00:57]} 11. O-O {[%emt 0:00:46]} Ne4 {[%emt 0:00:27]} 12. Bxe4 {[%emt 0:01:56]} Bxh4 {[%emt 0:00:59]} 13. Bh7+ {[%emt 0:00:38]} Kh8 {[%emt 0:00:56]} 14. Bd3 {[%emt 0:00:26]} Be7 {[%emt 0:26:15]} 15. Rab1 {[%emt 0:01:57]} a5 {[%emt 0:00:32]} 16. a3 {[%emt 0:01:12]} Bd6 {[%emt 0:04:36]} 17. b4 {[%emt 0:02:27]} axb4 {[%emt 0:00:29]} 18. axb4 {[%emt 0:00:05]} Nf6 {[%emt 0:00:13]} 19. b5 {[%emt 0:03:45]} Ra3 {[%emt 0:07:38]} 20. Ra1 {[%emt 0:07:28]} Qa5 {[%emt 0:01:22]} 21. Rxa3 {[%emt 0:01:49]} Qxa3 {[%emt 0:00:02]} 22. Rb1 {[%emt 0:01:51]} Kg8 {[%emt 0:02:10]} 23. Na4 {[%emt 0:17:39]} Bg4 {[%emt 0:09:05]} 24. Nd2 {[%emt 0:14:27]} cxb5 {[%emt 0:01:32]} 25. Bxb5 {[%emt 0:04:04]} Rc8 {[%emt 0:00:07]} 26. Qb2 {[%emt 0:05:06]} Bf5 {[%emt 0:07:09]} 27. Qxa3 {[%emt 0:00:23]} Bxa3 {[%emt 0:00:01]} 28. Ra1 {[%emt 0:00:11]} Bb4 {[%emt 0:06:57]} 29. Nb3 {[%emt 0:01:33]} Rc2 {[%emt 0:00:13]} 30. Nbc5 {[%emt 0:09:24]} b6 {[%emt 0:11:13]} 31. Bd3 {[%emt 0:06:57]} Bxd3 {[%emt 0:00:46]} 32. Nxd3 {[%emt 0:00:04]} Ba5 {[%emt 0:00:48]} 33. Ne5 {[%emt 0:05:11]} Ne4 {[%emt 0:00:51]} 34. Nd7 {[%emt 0:03:27]} Rc6 {[%emt 0:04:37]} 35. f3 {[%emt 0:02:06]} Nd6 {[%emt 0:01:02]} 36. Naxb6 {[%emt 0:00:57]} Bxb6 {[%emt 0:00:46]} 37. Ra8+ {[%emt 0:00:10]} Kh7 {[%emt 0:01:00]} 38. Nf8+ {[%emt 0:00:27]} Kg8 {[%emt 0:00:12]} 39. Nd7+ {[%emt 0:00:30]} Kh7 {[%emt 0:00:16]} 40. Nf8+ {[%emt 0:00:36]} 1/2-1/2

[Event "FIDE World Senior-50 CC 2023"]
[Site "Terrasini"]
[Date "2023.11.05"]
[Round "11.19"]
[White "Gratz, Glen"]
[Black "Dieu, Bruno"]
[Result "1-0"]
[ECO "C18"]
[WhiteElo "2100"]
[BlackElo "2221"]
[Annotator "RC"]
[PlyCount "73"]
[EventDate "2023.10.22"]
[EventType "swiss"]
[EventCountry "ITA"]
[SourceTitle "playchess.com"]
[Source "ChessBase"]
[SourceQuality "1"]
[TimeControl "40/5400+30:1800+30"]

1. e4 {[%emt 0:00:03]} e6 {[%emt 0:00:05]} 2. d4 {[%emt 0:00:21]} d5 {[%emt 0:00:06]} 3. Nc3 {[%emt 0:00:11]} Bb4 {[%emt 0:00:09]} 4. e5 {[%emt 0:00:30]} c5 {[%emt 0:00:11]} 5. a3 {[%emt 0:00:38]} Bxc3+ {[%emt 0:00:37]} 6. bxc3 {[%emt 0:00:05]} Qc7 {[%emt 0:00:07]} 7. Bb2 {[%emt 0:00:48]} Ne7 {[%emt 0:02:22]} 8. Bd3 {[%emt 0:01:02]} b6 {[%emt 0:01:02]} 9. Qg4 {[%emt 0:01:31]} c4 {[%emt 0:07:46]} 10. Be2 {[%emt 0:01:24]} O-O {[%emt 0:00:19]} 11. Nf3 {[%emt 0:03:52]} Nbc6 {[%emt 0:03:41]} 12. a4 {[%emt 0:02:00]} f6 {[%emt 0:00:06]} 13. exf6 {[%emt 0:07:49]} Rxf6 {[%emt 0:00:01]} 14. Qg3 {[%emt 0:01:03]} e5 {[%emt 0:05:52]} 15. h4 {[%emt 0:06:38]} Rg6 {[%emt 0:15:13]} 16. Qh2 {[%emt 0:00:47]} Bf5 {[%emt 0:00:12]} 17. O-O-O {[%emt 0:04:50]} Qb7 {[%emt 0:13:58]} 18. h5 {[%emt 0:08:17]} Rh6 {[%emt 0:00:19]} 19. Nxe5 {[%emt 0:01:31]} Nxe5 {[%emt 0:00:14]} 20. dxe5 {[%emt 0:00:29]} b5 {[%emt 0:16:55]} 21. g4 {[%emt 0:04:13]} Bxc2 {[%emt 0:04:14]} 22. Kxc2 {[%emt 0:00:51]} bxa4 {[%emt 0:00:01]} 23. Rb1 {[%emt 0:08:29]} Qb3+ {[%emt 0:00:23]} 24. Kd2 {[%emt 0:06:46]} Qa2 {[%emt 0:01:35]} 25. Ke3 {[%emt 0:06:21]} Rb8 {[%emt 0:00:34]} 26. Ba3 {[%emt 0:01:54]} Rxb1 {[%emt 0:07:50]} 27. Bxe7 {[%emt 0:00:41]} Rb3 {[%emt 0:00:19]} 28. Qf4 {[%emt 0:03:04]} Rb8 {[%emt 0:03:51]} 29. Bf3 {[%emt 0:00:55]} Qb3 {[%emt 0:00:56]} 30. Bxd5+ {[%emt 0:01:15]} Kh8 {[%emt 0:00:01]} 31. Qxc4 {[%emt 0:02:33]} Qc2 {[%emt 0:01:00]} 32. g5 {[%emt 0:01:17]} Rhb6 {[%emt 0:00:07]} 33. h6 {[%emt 0:00:20]} Re8 {[%emt 0:02:28]} 34. hxg7+ {[%emt 0:00:28]} Kxg7 {[%emt 0:00:03]} 35. Bf6+ {[%emt 0:00:28]} Rxf6 {[%emt 0:00:11]} 36. gxf6+ {[%emt 0:00:06]} Kh8 {[%emt 0:00:00]} 37. Be4 {[%emt 0:01:12]} 1-0